Cogmind - Beta 16.1 @@@ ROGUE MODE // 2026.03.15 @ 11:34:47 Player: Ragnakor Result: Self-destructed Performance ------------- Evolutions (1) 500 Regions Visited (3) 600 Robots Destroyed (19) 95 Value Destroyed (362) 362 Prototype IDs (0) 0 Alien Tech Used (0) 0 Bonus (0) 0 TOTAL SCORE: 1557 Bonus ------- None Cogmind --------- Core Integrity 3/400 Matter 300/300 Energy 99/100 System Corruption 9% Temperature Cool (0) Movement Core (50) Location -9/Materials Parts ------- > --- POWER (1) -------- (None) > --- PROPULSION (4) --- (None) > --- UTILITY (2) ------ (None) > --- WEAPON (2) ------- (None) > --- INVENTORY (5) ---- Heat Sink Small Storage Unit Sensor Array Hacking Suite Datajack Peak State ------------ > --- POWER ------------ Light Ion Engine > --- PROPULSION ------- Aluminum Leg Aluminum Leg > --- UTILITY ---------- Improved Heat Sink Small Storage Unit > --- WEAPON ----------- Beam Cannon Beam Cannon > --- INVENTORY -------- Light Ion Engine Hover Unit Hover Unit Hover Unit Heat Sink Sensor Array Hacking Suite Datajack [Rating: 10] Favorites ----------- Power Light Ion Engine Engine Light Ion Engine Propulsion Aluminum Leg Treads Light Treads Leg Aluminum Leg Hover Unit Hover Unit Flight Unit Flight Unit Utility Small Storage Unit Device Improved Heat Sink Storage Small Storage Unit Weapon Beam Cannon Energy Gun Medium Laser Energy Cannon Beam Cannon Ballistic Gun Light Assault Rifle Build | -11 -10 -10 -9 ------- Run | Yrd Mat Min Mat Slots Evolved 2 | . . . 2 Power . | . . . . Propulsion 2 | . . . 2 Utility . | . . . . Weapon . | . . . . Parts Attached 23 | 9 8 2 4 Power 5 | 1 3 1 . Engine 5 | 1 3 1 . Core . | . . . . Reactor . | . . . . Propulsion 9 | 3 2 1 3 Treads 1 | 1 . . . Leg 4 | 2 2 . . Wheel . | . . . . Hover 1 | . . . 1 Flight 3 | . . 1 2 Utility 5 | 3 1 . 1 Device 3 | 2 1 . . Storage 2 | 1 . . 1 Processor . | . . . . Hackware . | . . . . Protection . | . . . . Artifact . | . . . . Weapon 4 | 2 2 . . Energy Gun 1 | 1 . . . Energy Cannon 2 | . 2 . . Ballistic Gun 1 | 1 . . . Ballistic Cannon . | . . . . Launcher . | . . . . Special Weapon . | . . . . Impact Weapon . | . . . . Slashing Weapon . | . . . . Piercing Weapon . | . . . . Special Melee Weapon . | . . . . Unidentified Prototypes . | . . . . Parts Lost 12 | . 1 2 9 Power 2 | . . 1 1 Propulsion 6 | . . 1 5 Utility 2 | . 1 . 1 Weapon 2 | . . . 2 Highest Loss Streak 5 | . 1 2 5 To Critical Strikes . | . . . . Average Backups 6 | 1 7 7 6 Power . | . 1 . . Propulsion 2 | . 2 2 1 Utility 2 | . 2 3 3 Weapon . | . . . . Tool/Special . | . . . . Unused Backups 7 | . 1 2 4 Power . | . . . . Propulsion 2 | . . 2 . Utility 3 | . . . 3 Weapon 1 | . 1 . . Tool/Special 1 | . . . 1 Average Slot Usage (%) 91 | . 100 99 54 Engine 12 | . 14 14 7 Leg 23 | . 28 24 8 Flight 2 | . . 2 8 Device 12 | . 14 14 8 Storage 13 | . 14 14 9 Energy Cannon 23 | . 27 28 8 Peak Build Rating 10 | 9 10 10 10 Average Rating 8 | 5 8 9 6 On Entrance 6 | . 7 10 9 Avg Prop Armor Cover (%) 8 | 12 . 3 10 Naked Turns 38 | . . . 38 Heaviest Build 17 | 12 17 15 15 Greatest Support 20 | 20 20 20 10 Greatest Overweight (x) 1 | 1 . 1 1 Average Overweight (x) . | . . . . Largest Inventory Capacity 8 | 8 8 8 8 Average Capacity 7 | 6 8 8 7 Most Carried 8 | 3 8 8 8 Average Carried 6 | 1 7 7 6 Final Capacity 8 | 8 8 8 5 Final Carried 8 | 2 8 7 5 Class Distribution -------------------- 62% | Mutant 37% | Scavenger-Mutant Dominant Class ---------------- Mutant | -10/Materials Scavenger-Mutant | -10/Mines Mutant | -9/Materials Resources | -11 -10 -10 -9 ----------- Run | Yrd Mat Min Mat Matter Collected 411 | 293 80 15 23 Remotely . | . . . . Salvage Created 695 | 113 419 65 98 Parts 41 | 5 26 9 1 Haulers Intercepted 2 | . 2 . . Recyclers Shooed 1 | . 1 . . Parts Field Recycled . | . . . . Retrieved Matter . | . . . . Parts Self-Destructed . | . . . . Prevented . | . . . . Parts Restored . | . . . . Kills | -11 -10 -10 -9 ------- Run | Yrd Mat Min Mat Combat Hostiles Destroyed 10 | . 5 3 2 Cannons 9 | . 5 3 1 Classes Destroyed 8 | 2 4 1 1 Tunneler 3 | 1 1 1 . Hauler 2 | . 2 . . Recycler 1 | 1 . . . Operator 1 | . 1 . . Watcher 2 | . 2 . . Swarmer 3 | . . 3 . Grunt 6 | . 5 . 1 Brawler 1 | . . . 1 Best Kill Streak 3 | 2 2 3 1 Combat Bots Only 3 | . 2 3 1 Max Kills in Single Turn 2 | 1 1 2 1 Gunslinging . | . . . . Exploded . | . . . . Melee . | . . . . Uniques/NPCs Destroyed . | . . . . Combat | -11 -10 -10 -9 -------- Run | Yrd Mat Min Mat Hostile Shots Fired 195 | . 79 19 97 Missed 71 | . 26 3 42 Hits 124 | . 53 16 55 Melee 6 | . . . 6 Projectile 118 | . 53 16 49 Critical Strikes 1 | . . 1 . Damage Taken 1271 | . 514 135 622 Core 533 | . 85 51 397 Absorbed by Shields . | . . . . Core Remaining (%) 72 | 100 . 45 . Volleys Fired 51 | 3 28 8 12 Largest 2 | 2 2 2 2 Hottest 120 | 70 120 120 120 Shots Fired 91 | 6 56 16 13 Gun 6 | 6 . . . Cannon 85 | . 56 16 13 Launcher . | . . . . Special . | . . . . Kinetic 3 | 3 . . . Thermal 88 | 3 56 16 13 Explosive . | . . . . Electromagnetic . | . . . . Robot Hit Streak 7 | 3 7 2 4 Robot Miss Streak 6 | 2 6 2 3 Penetration Max . | . . . . Secondary Targets . | . . . . Shots Hit Robots 49 | 4 28 9 8 Core Hits 21 | 3 12 4 2 Critical Kills . | . . . . Critical Parts Destroyed . | . . . . Critical Strikes . | . . . . Melee Attacks . | . . . . Impact . | . . . . Slashing . | . . . . Piercing . | . . . . Sneak Attacks . | . . . . Combat Hostiles . | . . . . Follow-up Attacks . | . . . . Damage Inflicted 908 | 40 509 192 167 Guns 40 | 40 . . . Cannons 844 | . 509 192 143 Explosions . | . . . . Melee . | . . . . Ramming 24 | . . . 24 Kinetic 16 | 16 . . . Thermal 868 | 24 509 192 143 Explosive . | . . . . Electromagnetic . | . . . . Impact . | . . . . Slashing . | . . . . Piercing . | . . . . Highest Corruption 9 | . . . 9 Average Corruption 8 | . . . 8 Corruption Purged . | . . . . Corruption Blocked . | . . . . Effects 4 | . . . 4 Message Errors 2 | . . . 2 Data Loss (minor) 2 | . . . 2 Overload Shots . | . . . . Overflow Damage . | . . . . Projectiles . | . . . . Explosions . | . . . . Melee . | . . . . Knockbacks 1 | . . . 1 Impact 1 | . . . 1 Kinetic . | . . . . Secondary . | . . . . Self-Inflicted Damage 10 | . . . 10 Shots . | . . . . Rammed 6 | . . . 6 Targets Rammed 7 | . . . 7 Kicked 1 | . . . 1 Crushed . | . . . . Highest Temperature 342 | 30 342 54 9 Average Temperature 81 | 18 96 26 6 Received Heat Transfer 213 | . 138 . 75 Effects 1 | . 1 . . Energy Bleed 1 | . 1 . . Siege Activations . | . . . . Martial Activations . | . . . . Shielding Activations . | . . . . Robots Disrupted . | . . . . Combat Hostiles . | . . . . Robots Corrupted . | . . . . Combat Hostiles . | . . . . Parts Fried . | . . . . Impact Corruptions . | . . . . Robots Melted 1 | . . . 1 Combat Hostiles 1 | . . . 1 Parts Melted 2 | . 1 1 . Heat Transferred 1850 | 74 1073 407 296 Parts Sabotaged . | . . . . Parts Stolen . | . . . . Parts Stripped . | . . . . Power Chain Reactions . | . . . . Alert | -11 -10 -10 -9 ------- Run | Yrd Mat Min Mat Maximum Alert Level . | . . . . Low Security (%) 100 | 100 100 100 100 Level 1 . | . . . . Level 2 . | . . . . Level 3 . | . . . . Level 4 . | . . . . Level 5 . | . . . . High Security . | . . . . Max Security . | . . . . Peak Influence 101 | 5 101 50 89 Initial 17 | . . 17 7 Average 16 | . 24 10 10 Influence Increases 544 | 10 288 82 164 Destroy 0b10 Robot/C 200 | . 100 60 40 Destroy 0b10 Robot/NC 45 | 10 30 5 . Destroy Leader 58 | . 38 10 10 Successful Hack 58 | . 42 7 9 Destroy Structure 3 | . 3 . . Lose Combat Pursuer 180 | . 75 . 105 Influence Decreases 465 | 10 242 108 105 Entered New Map 42 | . . 29 13 Time Decay 378 | 10 232 69 67 Lost Part 45 | . 10 10 25 Squads Dispatched 3 | . 2 . 1 Investigation 2 | . 2 . . Extermination . | . . . . Reinforcement 1 | . . . 1 Assault . | . . . . Garrison . | . . . . Intercept . | . . . . Searches Triggered . | . . . . Construction Impeded . | . . . . Haulers Reinforced . | . . . . Active Scanning Responses . | . . . . Cargo Convoy Interrupts . | . . . . Stealth | -11 -10 -10 -9 --------- Run | Yrd Mat Min Mat Distress Signals 3 | . . . 3 Communications Jammed . | . . . . Distress Signals . | . . . . Times Spotted 37 | . 17 3 17 Peak Tracking Total 10 | . 6 3 10 Tactical Retreats 5 | . 2 . 3 Traps | -11 -10 -10 -9 ------- Run | Yrd Mat Min Mat Traps Triggered 2 | . 2 . . Indirectly . | . . . . Trap Hack Attempts . | . . . . Triggered . | . . . . Disarmed . | . . . . Reprogrammed . | . . . . Reused . | . . . . Traps Extracted . | . . . . Installed . | . . . . Triggered . | . . . . Machines | -11 -10 -10 -9 ---------- Run | Yrd Mat Min Mat Machines Disabled . | . . . . Max in Single Turn . | . . . . Machines Repaired . | . . . . Machines Dismantled . | . . . . Machines Sabotaged . | . . . . Overloaded Fab Kills . | . . . . Hacking | -11 -10 -10 -9 --------- Run | Yrd Mat Min Mat Machines Accessed 8 | . 6 1 1 Terminals 7 | . 5 1 1 Fabricators . | . . . . Repair Stations . | . . . . Recycling Units 1 | . 1 . . Scanalyzers . | . . . . Garrison Access . | . . . . Total Hacks 23 | . 18 2 3 Successful 14 | . 11 1 2 Failed 9 | . 7 1 1 Catastrophic 1 | . 1 . . Database Lockouts . | . . . . Manual 13 | . 12 . 1 Terminals 20 | . 15 2 3 Fabricators . | . . . . Repair Stations . | . . . . Recycling Units 3 | . 3 . . Scanalyzers . | . . . . Garrison Access . | . . . . Terminal Hacks 3 | . 1 1 1 Emergency Access Points 2 | . 1 . 1 Patrol Status 1 | . . 1 . Fabricator Hacks . | . . . . Repair Station Hacks . | . . . . Recycling Unit Hacks 3 | . 3 . . Process 1 | . 1 . . Report Inventory 1 | . 1 . . Retrieve Matter 1 | . 1 . . Scanalyzer . | . . . . Garrison Access Hacks . | . . . . Unauthorized Hacks 8 | . 7 . 1 Terminals 8 | . 7 . 1 Assimilate 2 | . 2 . . Botnet 5 | . 4 . 1 Operators 1 | . 1 . . Fabricators . | . . . . Repair Stations . | . . . . Recycling Units . | . . . . Scanalyzers . | . . . . Garrison Access . | . . . . Data Cores Recovered . | . . . . Used . | . . . . Hacking Detections 7 | . 5 1 1 Full Trace Events 1 | . 1 . . Feedback Events . | . . . . Feedback Blocked . | . . . . Robot Schematics Acquired . | . . . . Robots Built . | . . . . Authchips . | . . . . Time . | . . . . Total Robot Build Rating . | . . . . Part Schematics Acquired . | . . . . Parts Built . | . . . . Authchips . | . . . . Time . | . . . . Total Part Build Rating . | . . . . Part Studies Acquired . | . . . . Parts Repaired . | . . . . Time . | . . . . Parts Recycled . | . . . . Recycled Matter 97 | . 97 . . Retrieved Matter 97 | . 97 . . Retrieved Components . | . . . . Parts Scanalyzed . | . . . . Part Schematics Acquired . | . . . . Parts Damaged . | . . . . Bothacking | -11 -10 -10 -9 ------------ Run | Yrd Mat Min Mat Used RIF Installer . | . . . . Robots Hacked . | . . . . Non-combat . | . . . . Combat . | . . . . Robot Hacks Applied . | . . . . Relay Couplers Released . | . . . . Fabnet Peak Effective % . | . . . . Robots Rewired . | . . . . Allies Hacked . | . . . . Hacks Repelled . | . . . . Allies | -11 -10 -10 -9 -------- Run | Yrd Mat Min Mat Total Allies . | . . . . Largest Group . | . . . . Highest-Rated Group . | . . . . Highest-Rated Ally . | . . . . Total Orders . | . . . . Ally Attacks . | . . . . Total Damage . | . . . . Kills . | . . . . Allies Corrupted . | . . . . Allies Melted . | . . . . Intel | -11 -10 -10 -9 ------- Run | Yrd Mat Min Mat Active Infowar (turns) 531 | 20 511 . . Terrain 3 | 3 . . . Seismic 528 | 17 511 . . Robot Analysis Total . | . . . . Derelict Logs Recovered 1 | . . 1 . Drone Launches . | . . . . Drone Recoveries . | . . . . Exploration | -11 -10 -10 -9 ------------- Run | Yrd Mat Min Mat Turns Passed 1312 | 78 673 334 227 Spaces Moved 924 | 53 468 229 174 Core 98 | 19 . . 79 Treads . | . . . . Legs 826 | 34 468 229 95 Wheels . | . . . . Hover . | . . . . Flight . | . . . . Fastest Speed 50 | 50 120 120 50 Average Speed 119 | 101 120 130 108 Slowest Speed 190 | 120 120 190 190 Overloaded Moves . | . . . . Propulsion Burnouts . | . . . . Robots Hopped . | . . . . Potential Cave-ins . | . . . . Cave-ins Triggered . | . . . . Exploration Rate (%) 32 | 3 64 44 19 Regions Visited 3 Branch Regions 1 Pre-discovered Areas 1 | . . 1 . Known Exits Taken . | . . . . Unknown Exits Taken 3 | 1 1 1 . Scrap Searched 1 | . . 1 . Spaces Dug . | . . . . Terrain Destroyed . | . . . . Melee . | . . . . Projectile . | . . . . AOE . | . . . . Terrain Rammed . | . . . . Walls Destroyed . | . . . . Machines Disabled . | . . . . Actions | -11 -10 -10 -9 --------- Run | Yrd Mat Min Mat Total 1039 | 68 524 249 198 Wait 14 | . 9 5 . Move 921 | 52 467 228 174 Hop . | . . . . Pick Up 12 | 2 7 3 . Fast Attach 10 | 8 1 1 . Attach 4 | . . 1 3 Detach 1 | 1 . . . Swap 9 | 1 7 . 1 Drop 10 | 1 5 3 1 Fire 51 | 3 28 8 12 Melee . | . . . . Ram 6 | . . . 6 Kick 1 | . . . 1 Crush . | . . . . Escape Stasis . | . . . . Rewire . | . . . . Trap . | . . . . Miscellaneous . | . . . . Route ------- -11/Scrapyard -10/Materials (discovered 4 exits: *Mat x2 / *Min / [*Sub]) -10/Mines -9/Materials (discovered 1 exit: Mat) History --------- Turn | Location | Event 6 | -11/Scrapyard | Discovered new exit (range 16) 79 | -11/Scrapyard | Entered Materials 106 | -10/Materials | Discovered new exit (range 10) 169 | -10/Materials | Discovered new exit (range 13) 301 | -10/Materials | Build established: Mutant 472 | -10/Materials | Discovered new exit (range 4) 736 | -10/Materials | Discovered new exit (range 15) 752 | -10/Materials | Entered Mines 753 | -10/Mines | Learned location of Storage (-9) 886 | -10/Mines | Learned location of 1 exit from Materials 907 | -10/Mines | Build established: Scavenger-Mutant 922 | -10/Mines | Discovered new exit (range 8) 1007 | -10/Mines | Core integrity fell below 50% 1086 | -10/Mines | Entered Materials 1086 | -9/Materials | Evolved 2 slots: Propulsion x2 1087 | -9/Materials | Identified exit to Materials 1221 | -9/Materials | Lost 4 parts (2n2w) 1278 | -9/Materials | Core integrity fell below 50% 1298 | -9/Materials | Lost 5 parts (1p3n1u) 1307 | -9/Materials | Core integrity fell below 20% 1313 | -9/Materials | Self-destructed Last Messages --------------- 01279_ Slammed into U-05 Engineer. 01284_ Slammed into R-06 Scavenger. 01284_ R-06 Scavenger knocked back. 01304_ Connecting with Terminal... 01304_ Current location identified: Materials >>Access(Emergency) Found 2 emergency access doors: (12,64) (12,62) Map updated. >>Trojan(Botnet) Trojan loaded successfully. Testing... Terminal linked with 0 systems. Awaiting botnet instructions. 01306_ Slammed into S-10 Pest. 01306_ Destabilizing: Core damaged (-12). 01307_ Slammed into S-10 Pest. 01308_ Destabilizing: Core damaged (-8). 01309_ System corrupted: Component data lost. Map ----- +----------------------------------------------------+ | ????# #???# # # #??????#??????????? | | ????##### #???# # " " # #????? #?? ???????? | | ????????# #???# # "" # ###### #? ???????? | | ????????# #???# # "" # # ???????? | | ????????# #???# # """ # / ????? | | ######### #???# +% """ # """ # ????? | | ## #???# # %% # "T" #???? ?????? | | ## ##??# # """ # ^ #??????????? | | # ####% # """%# #??????????? | | # # """ # #??????????? | | + " # """ # #??????????? | | # # """ / #??????????? | | # ######## # #??????????? | | ## ##??????#########/#########??????????? | | ## #??????????# ! #???????????????? | | ##+###### #??????????# #???????????????? | | ????????# #??????????# """ #???????????????? | | ??+?????# #??????????# """ #???????????????? | | ????????# #??????????# """ #???????????????? | | ????????# #??????????# """ #???????????????? | | ????????# #??????????# "Y" #???????????????? | | ??????# #??????????# """ ??#???????????????? | | ????# #??????????######????????????????????? | | ??# ###+##################### ????????? | | # g Y ????????? | | + ss @ w ????????? | | # s ????????? | | ######??## ###+######################???????????? | | ?????????# # % #??????????????????????????? | | ?????????# # #??????????????????????????? | | ?????????# # #??????????????????????????? | | ?????????# # #??????????????????????????? | | ?????????# # " """ #??????????????????????????? | | ?????????# # T """ #??????????????????????????? | | ?????????# # " """ #??????????????????????????? | | ?????????# # #??????????????????????????? | | ?????????# ###########??????????????????????????? | | ????????? #????????????????????????????????????? | | ????????? #????????????????????????????????????? | | ?????????###?????????????????????????????????????? | | ?????????????????????????????????????????????????? | | ?????????????????????????????????????????????????? | | ?????????????????????????????????????????????????? | | ?????????????????????????????????????????????????? | | ?????????????????????????????????????????????????? | | ?????????????????????????????????????????????????? | | ???????????????????????????????????????